bitfinex-derivatives/quotes_BTCF0:USTF0_20250309
["timestamp","ask_amount","ask_price","bid_price","bid_amount"]
[1741543878775,0.2037,82929.0,82928.0,0.96429627]
[1741543879177,0.44492,82929.0,82928.0,0.96429627]
[1741543879373,0.31562,82929.0,82928.0,0.96429627]
[1741543879575,0.44192,82929.0,82928.0,0.96429627]
[1741543879769,0.31562,82929.0,82928.0,0.96429627]
[1741543879979,0.31762,82929.0,82928.0,0.96429627]
[1741543880382,0.31762,82929.0,82928.0,0.84370017]
[1741543880578,0.57202,82929.0,82928.0,0.84370017]
[1741543880780,0.44132,82929.0,82928.0,0.96429627]
[1741543881682,0.31762,82929.0,82928.0,0.96429627]
[1741543882277,0.44128,82929.0,82928.0,0.96429627]
[1741543882782,0.57198,82929.0,82928.0,0.4813961]
[1741543882985,0.56998,82929.0,82928.0,0.4813961]
[1741543883280,0.57298,82929.0,82928.0,0.4813961]
[1741543884974,0.31858,82929.0,82928.0,0.4813961]
[1741543885175,0.31858,82929.0,82928.0,0.96429627]
[1741543885390,0.31958,82929.0,82928.0,0.96429627]
[1741543885583,0.44698,82929.0,82928.0,0.96429627]
[1741543885885,0.60198,82929.0,82928.0,0.96429627]
[1741543886087,0.60198,82929.0,82928.0,0.3608]
[1741543886384,0.60098,82929.0,82928.0,0.3608]
[1741543886775,0.7215747,82929.0,82928.0,0.3608]
[1741543886976,0.3213049,82922.0,82921.0,0.3608]
[1741543887180,0.31554,82922.0,82921.0,0.3608]
[1741543887784,0.4361449,82922.0,82921.0,0.3608]
[1741543888085,0.7116449,82922.0,82919.0,0.00018089]
[1741543888278,0.2007,82920.0,82911.0,0.3608]
[1741543888479,0.1206194,82912.0,82911.0,0.3608]
[1741543888789,0.4361594,82912.0,82911.0,0.3608]
[1741543888990,0.31554,82912.0,82911.0,0.4814209]
[1741543889184,0.32847825,82912.0,82911.0,0.3608]
[1741543889381,0.1206288,82906.0,82904.0,0.3608]
[1741543889585,0.1548,82905.0,82904.0,0.3608]
[1741543889775,0.321331,82904.0,82903.0,0.00018089]
[1741543890179,0.5096,82904.0,82903.0,0.00018089]
[1741543890787,0.630231,82904.0,82903.0,0.00018089]
[1741543891585,0.629231,82904.0,82903.0,0.00018089]
[1741543891892,0.5086,82904.0,82903.0,0.00018089]
[1741543892091,0.3149,82904.0,82903.0,0.00118089]
[1741543892391,0.12084,82904.0,82903.0,0.76581356]
[1741543892688,0.12084,82904.0,82903.0,0.91781356]
[1741543893687,0.1148,82912.0,82903.0,0.79718106]
[1741543893897,0.1148,82912.0,82911.0,0.96432107]
[1741543894688,0.1148,82912.0,82911.0,1.28986986]
[1741543896886,0.1168,82912.0,82911.0,1.28986986]
[1741543898192,0.1168,82912.0,82911.0,1.15680017]
[1741543898396,0.2694,82912.0,82911.0,1.27742107]
[1741543898798,0.2674,82912.0,82911.0,0.6334209]
[1741543899199,0.2674,82912.0,82911.0,0.7849209]
[1741543899695,0.4244,82912.0,82911.0,0.7849209]
[1741543900098,0.11476,82919.0,82912.0,0.54320917]
[1741543900288,0.11476,82919.0,82918.0,0.4814107]
[1741543900488,0.11476,82919.0,82918.0,0.96431087]
[1741543900804,0.00018089,82920.0,82919.0,0.1206092]
[1741543900994,0.00018089,82920.0,82919.0,0.91680937]
[1741543902601,0.00018089,82920.0,82919.0,0.91673979]
[1741543902995,0.00118089,82920.0,82919.0,0.91773979]
[1741543903603,0.16258089,82920.0,82919.0,0.91773979]
[1741543903804,0.03550458,82921.0,82920.0,0.60350797]
[1741543904099,0.03550458,82921.0,82920.0,0.91850797]
[1741543904301,0.03550458,82921.0,82920.0,0.79790017]
[1741543904502,0.03550458,82921.0,82920.0,0.1605]
[1741543904702,0.03550458,82921.0,82919.0,0.001]
[1741543904901,0.1541,82920.0,82919.0,0.001]
[1741543905407,0.1206092,82919.0,82918.0,0.3608]
[1741543905604,0.3173,82920.0,82909.0,0.1657]
[1741543905905,0.3173,82920.0,82901.0,0.3608]
[1741543905906,0.1206259,82908.0,82901.0,0.3608]
[1741543906101,0.11368,82907.0,82905.0,0.1206287]
[1741543906401,0.11468,82906.0,82905.0,0.1206287]
[1741543906705,0.11368,82906.0,82905.0,0.1206287]
[1741543907409,0.11368,82906.0,82903.0,0.15168089]
[1741543907705,0.1541,82905.0,82904.0,0.2826304]
[1741543908299,0.003,82908.0,82907.0,0.1206267]
[1741543908601,0.003,82908.0,82907.0,0.4814267]
[1741543908807,0.003,82908.0,82907.0,0.96432687]
[1741543909005,0.166,82908.0,82907.0,0.96432687]
[1741543909611,0.163,82908.0,82907.0,0.96432687]
[1741543910004,0.003,82908.0,82907.0,0.96432687]
[1741543910715,0.1582,82908.0,82907.0,0.96432687]
[1741543911001,0.11764,82908.0,82907.0,0.96432687]
[1741543912702,0.27124,82908.0,82907.0,0.4814267]
[1741543912908,0.27124,82908.0,82907.0,0.3608]
[1741543913105,0.47194,82908.0,82907.0,0.4814267]
[1741543913905,0.47194,82908.0,82907.0,0.3608]
[1741543914307,0.5925652,82908.0,82907.0,0.3608]
[1741543914609,0.47194,82908.0,82907.0,0.3608]
[1741543914907,0.47194,82908.0,82907.0,0.4814267]
[1741543915700,0.47194,82908.0,82907.0,0.4824267]
[1741543917412,0.47194,82908.0,82907.0,0.3618]
[1741543918005,0.47194,82908.0,82907.0,0.3608]
[1741543918611,0.5925652,82908.0,82907.0,0.3618]
[1741543918911,0.47194,82908.0,82907.0,0.001]
[1741543919109,0.46894,82908.0,82903.0,0.00018089]
[1741543919311,0.2007,82906.0,82905.0,0.1206296]
[1741543919813,0.436,82906.0,82905.0,0.1206296]
[1741543920709,0.55056,82906.0,82905.0,0.1206296]
[1741543920907,0.54956,82906.0,82905.0,0.1206296]
[1741543921406,0.1206378,82900.0,82898.0,0.3608]
[1741543921611,0.54852,82899.0,82898.0,0.3608]
[1741543922013,0.6691583,82899.0,82898.0,0.3608]
[1741543922710,0.6691583,82899.0,82898.0,0.3618]
[1741543922922,0.54852,82899.0,82898.0,0.3618]
[1741543923110,0.6691583,82899.0,82898.0,0.3618]
[1741543923316,0.54852,82899.0,82898.0,0.001]
[1741543924408,0.54852,82899.0,82897.0,0.00018089]
[1741543924711,0.55352,82899.0,82898.0,0.001]
[1741543925716,0.55452,82899.0,82897.0,0.00118089]
[1741543926421,0.3193398,82898.0,82897.0,0.00118089]
[1741543926810,0.5711398,82898.0,82897.0,0.00118089]
[1741543927316,0.5701398,82898.0,82897.0,0.00018089]
[1741543927517,0.58264833,82898.0,82897.0,0.00018089]
[1741543927919,0.47000853,82898.0,82897.0,0.00118089]
[1741543928213,0.59064833,82898.0,82897.0,0.00118089]
[1741543929413,0.47000853,82898.0,82897.0,0.00118089]
[1741543929812,0.47000853,82898.0,82897.0,0.23048089]
[1741543931014,0.4575,82898.0,82897.0,0.23048089]
[1741543931515,0.4575,82898.0,82897.0,0.47298089]
[1741543932407,0.007,82898.0,82897.0,0.59362209]
[1741543932913,0.12144,82898.0,82897.0,0.59362209]
[1741543933611,0.4407798,82898.0,82897.0,0.00118089]
[1741543933811,0.9515798,82898.0,82897.0,0.00118089]
[1741543934010,0.1987,82889.0,82873.0,0.3608]
[1741543934210,0.1206663,82880.0,82874.0,0.4659]
[1741543934408,0.3528,82879.0,82874.0,0.4659]
[1741543934721,0.5515,82879.0,82874.0,0.4659]
[1741543934917,0.1987,82875.0,82874.0,0.2309]
[1741543935216,0.35348,82879.0,82873.0,0.3608]
[1741543935524,0.2417,82874.0,82873.0,0.3608]
[1741543935714,0.3623747,82874.0,82868.0,0.00018089]
[1741543936014,0.2417,82874.0,82868.0,0.00018089]
[1741543936216,0.2417,82874.0,82869.0,0.1206812]
[1741543936414,0.2417,82874.0,82870.0,0.4784]
[1741543937210,0.1206791,82871.0,82870.0,0.2427]
[1741543937414,0.2350791,82871.0,82868.0,0.00018089]
[1741543937611,0.3151,82871.0,82868.0,0.00018089]
[1741543937816,0.2007,82863.0,82856.0,0.3608]
[1741543938026,0.34676,82862.0,82856.0,0.3608]
[1741543938317,0.34676,82862.0,82857.0,0.4708]
[1741543938721,0.2414,82861.0,82857.0,0.4708]
[1741543938924,0.120698,82858.0,82857.0,0.4708]
[1741543939118,0.120698,82858.0,82857.0,0.237]
[1741543939312,0.120698,82858.0,82856.0,0.3608]
[1741543939313,0.1206995,82857.0,82856.0,0.3498]
[1741543939521,0.2414,82857.0,82852.0,0.2338]
[1741543939721,0.2414,82857.0,82852.0,0.237]
[1741543939722,0.1207053,82853.0,82852.0,0.237]
[1741543939917,0.2350653,82853.0,82852.0,0.237]
[1741543940117,0.11436,82853.0,82851.0,0.000181]
[1741543940316,0.3621068,82852.0,82851.0,0.000181]
[1741543940717,0.7229068,82852.0,82851.0,0.000181]
[1741543940910,0.7229068,82852.0,82827.0,0.2407]
[1741543940911,0.1207344,82833.0,82827.0,0.2407]
[1741543941114,0.120742,82828.0,82824.0,0.3608]
[1741543941322,0.120742,82828.0,82824.0,0.84370017]
[1741543941625,0.120742,82828.0,82816.0,0.3010789]
[1741543941626,0.3608,82828.0,82816.0,0.2407]
[1741543941813,0.0603744,82824.0,82820.0,0.48290017]
[1741543942015,0.11436,82823.0,82820.0,0.48290017]
[1741543942315,0.3484505,82822.0,82821.0,0.2339]
[1741543942522,0.120754,82820.0,82814.0,0.000181]
[1741543942711,0.2277,82819.0,82814.0,0.000181]
[1741543942915,0.4643,82819.0,82814.0,0.475981]
[1741543943427,0.4643,82819.0,82814.0,0.5967431]
[1741543943621,0.4643,82819.0,82814.0,0.475981]
[1741543943822,0.1207607,82815.0,82814.0,0.000181]
[1741543944028,0.2351207,82815.0,82814.0,0.000181]
[1741543944632,0.7226207,82815.0,82814.0,0.000181]
[1741543945725,0.1207811,82801.0,82800.0,0.1]
[1741543945926,0.2351011,82801.0,82800.0,0.1]
[1741543946117,0.11432,82801.0,82800.0,0.1]
[1741543946822,0.73641664,82801.0,82800.0,0.1]
[1741543947125,0.11432,82801.0,82800.0,0.1]
[1741543947828,0.00018112,82809.0,82805.0,0.1207741]
[1741543948015,0.00018112,82809.0,82808.0,0.48290017]
[1741543948334,0.11450112,82809.0,82808.0,0.60367107]
[1741543948519,0.11450112,82809.0,82808.0,0.95940017]
[1741543948725,0.11450112,82809.0,82808.0,1.08017107]
[1741543949017,0.11450112,82809.0,82808.0,0.95940017]
[1741543950122,0.11450112,82809.0,82808.0,0.4765]
[1741543951717,0.23527052,82809.0,82808.0,0.4765]
[1741543952027,0.70287052,82809.0,82808.0,0.4765]
[1741543952933,0.58210112,82809.0,82808.0,0.4765]
[1741543953525,0.70287052,82809.0,82808.0,0.4765]
[1741543954032,0.11450112,82809.0,82808.0,1.08017107]
[1741543954531,0.11450112,82809.0,82808.0,0.95940017]
[1741543954930,0.11450112,82809.0,82808.0,1.08017107]
[1741543955124,0.11450112,82809.0,82808.0,0.95940017]
[1741543955330,0.11446112,82809.0,82808.0,0.95940017]
[1741543955629,0.11446112,82809.0,82808.0,1.08017107]
[1741543956820,0.11446112,82809.0,82808.0,0.95940017]
[1741543958526,0.12146112,82809.0,82808.0,0.96040017]
[1741543958937,0.12146112,82809.0,82808.0,0.4775]
[1741543959633,0.24223052,82809.0,82808.0,0.4775]
[1741543959834,0.59596112,82809.0,82808.0,0.4775]
[1741543960032,0.12146112,82809.0,82808.0,1.08117107]
[1741543960537,0.11946112,82809.0,82808.0,1.08117107]
[1741543961128,0.11438112,82809.0,82808.0,0.95940017]
[1741543961330,0.11938112,82809.0,82808.0,0.96040017]
[1741543961635,0.24015052,82809.0,82808.0,0.2317]
[1741543962033,0.23915052,82809.0,82808.0,0.2317]
[1741543962434,0.48425052,82809.0,82808.0,0.2317]
[1741543962636,0.36348112,82809.0,82808.0,0.2317]
[1741543962938,0.48425052,82809.0,82808.0,0.2317]
[1741543963331,0.68495052,82809.0,82808.0,0.2317]
[1741543963840,0.68595052,82809.0,82808.0,0.001]
[1741543964140,0.91405052,82809.0,82808.0,0.001]
[1741543964436,0.3214811,82801.0,82793.0,0.2177]
[1741543964641,0.1207913,82794.0,82793.0,0.2177]
[1741543964824,0.1207928,82793.0,82790.0,0.2402]
[1741543965138,0.4919,82793.0,82790.0,0.2402]
[1741543965434,0.4919,82793.0,82790.0,0.17229259]
[1741543965637,0.1207942,82792.0,82791.0,0.2444]
[1741543966234,0.5951942,82792.0,82791.0,0.2444]
[1741543966435,0.2007,82788.0,82762.0,0.3608]
[1741543966740,0.1208109,82781.0,82772.0,0.48290017]
[1741543966923,0.58956,82780.0,82772.0,0.48290017]
[1741543967124,0.58956,82780.0,82773.0,0.2444]
[1741543967335,0.6020229,82780.0,82773.0,0.2444]
[1741543967737,0.11416,82780.0,82779.0,0.60371337]
[1741543967950,0.11316,82780.0,82779.0,0.60371337]
[1741543968640,0.11316,82780.0,82779.0,1.06211337]
[1741543968932,0.00018112,82783.0,82781.0,0.60371047]
[1741543969135,0.11412,82787.0,82786.0,0.120803]
[1741543969337,0.11412,82787.0,82786.0,0.48290017]
[1741543970335,0.11412,82787.0,82784.0,0.2271]
[1741543970640,0.4709,82786.0,82785.0,0.2518]
[1741543970838,0.11412,82787.0,82786.0,0.120803]
[1741543971044,0.11412,82787.0,82786.0,0.352103]
[1741543971236,0.11412,82787.0,82786.0,0.464]
[1741543971544,0.11412,82787.0,82786.0,0.94690017]
[1741543971733,0.11412,82787.0,82786.0,1.06770317]
[1741543972143,0.11612,82787.0,82786.0,1.06770317]
[1741543972839,0.11612,82787.0,82786.0,0.94690017]
[1741543973146,0.11612,82787.0,82786.0,1.42850317]
[1741543973535,0.11612,82787.0,82786.0,1.30770017]
[1741543973745,0.11612,82787.0,82786.0,1.42850317]
[1741543973937,0.11712,82787.0,82786.0,0.96550317]
[1741543974245,0.11712,82787.0,82786.0,0.3618]
[1741543974637,0.11712,82787.0,82786.0,0.001]
[1741543975636,0.4891,82787.0,82786.0,0.121803]
[1741543975840,0.11708,82787.0,82786.0,0.53667247]
[1741543976047,0.11708,82787.0,82786.0,1.00497247]
[1741543976243,0.11708,82787.0,82786.0,0.95120017]
[1741543976244,0.11704,82787.0,82786.0,0.95120017]
[1741543976442,0.11704,82787.0,82786.0,0.88317128]
[1741543976742,0.11704,82787.0,82786.0,1.00397428]
[1741543976943,0.11704,82787.0,82786.0,0.88317128]
[1741543977146,0.11404,82787.0,82786.0,0.88317128]
[1741543977348,0.11704,82787.0,82786.0,1.00497428]
[1741543977937,0.11404,82787.0,82786.0,1.00497428]
[1741543978140,0.11704,82787.0,82786.0,1.00497428]
[1741543978351,0.31774,82787.0,82786.0,1.00497428]
[1741543978843,0.11474,82788.0,82787.0,0.1208015]
[1741543979047,0.22878,82788.0,82787.0,1.00447278]
[1741543979650,0.22878,82788.0,82787.0,1.00457641]
[1741543980836,0.22878,82788.0,82787.0,0.88377491]
[1741543981144,0.22878,82788.0,82787.0,0.46890363]
[1741543981740,0.23178,82788.0,82787.0,0.46990363]
[1741543981941,0.23178,82788.0,82787.0,0.88477491]
[1741543982144,0.11774,82788.0,82787.0,1.00557641]
[1741543982346,0.00428996,82794.0,82792.0,0.1207942]
[1741543982551,1e-08,82794.0,82793.0,1.37816408]
[1741543982956,0.00018112,82795.0,82794.0,0.1207913]
[1741543983252,0.00018112,82795.0,82794.0,0.53566258]
[1741543983455,0.00018112,82795.0,82794.0,1.01396258]
[1741543983648,0.11418112,82795.0,82794.0,0.89317128]
[1741543983950,0.23497102,82795.0,82794.0,0.89317128]
[1741543984147,0.1208001,82788.0,82787.0,0.58100363]
[1741543984339,0.1208001,82788.0,82787.0,0.00110363]
[1741543984648,0.1208001,82788.0,82787.0,0.00037953]
[1741543984649,0.3215001,82788.0,82787.0,0.00037953]
[1741543984854,0.3215132,82779.0,82778.0,0.00018112]
[1741543985053,0.7962732,82779.0,82778.0,0.00018112]
[1741543985351,1.0090732,82779.0,82778.0,3.429e-05]
[1741543985548,0.2007,82772.0,82749.0,0.4653]
[1741543985739,0.11190891,82760.0,82756.0,0.41487128]
[1741543985943,0.11190891,82760.0,82749.0,0.7134]
[1741543985944,0.35756,82759.0,82757.0,0.4783]
[1741543986145,0.59746,82759.0,82757.0,0.4783]
[1741543986345,0.2007,82758.0,82729.0,0.50118754]
[1741543986545,0.242,82757.0,82749.0,0.241]
[1741543986759,0.242,82757.0,82749.0,0.3618558]
[1741543986945,0.242,82757.0,82749.0,0.241]
[1741543987247,0.2007,82752.0,82747.0,0.2296]
[1741543987449,0.2611288,82749.0,82744.0,0.28479756]
[1741543987653,0.1198628,82745.0,82744.0,0.28479756]
[1741543988046,0.3205628,82745.0,82744.0,0.28479756]
[1741543988255,0.4806628,82745.0,82744.0,0.21672713]
[1741543988558,0.51715,82748.0,82744.0,0.21672713]
[1741543988748,0.4863,82746.0,82744.0,0.21672713]
[1741543989048,0.2427,82745.0,82744.0,0.21672713]
[1741543989251,0.3635628,82745.0,82744.0,0.21672713]
[1741543989553,0.3635628,82745.0,82735.0,0.2296]
[1741543989554,0.7225,82745.0,82735.0,0.2296]
[1741543989753,0.91201648,82745.0,82735.0,0.2296]
[1741543989956,0.2378,82745.0,82744.0,0.53573558]
[1741543990142,0.2378,82745.0,82744.0,0.49791905]
[1741543990345,0.2419137,82745.0,82743.0,0.485]
[1741543990547,0.2261,82744.0,82742.0,0.3608]
[1741543990752,0.11392,82743.0,82742.0,0.4816672]
[1741543990946,0.0041137,82743.0,82742.0,0.3608]
[1741543991146,0.3441337,82743.0,82742.0,0.3608]
[1741543991351,0.0604345,82741.0,82725.0,0.3653909]
[1741543991550,0.4639,82740.0,82725.0,0.2445]
[1741543991750,0.4639,82740.0,82727.0,0.1208885]
[1741543991951,0.0041137,82739.0,82728.0,0.1208867]
[1741543992142,0.0041137,82739.0,82727.0,0.2417768]
[1741543992350,0.4686,82738.0,82725.0,0.3653915]
[1741543992549,0.2169537,82737.0,82721.0,0.3608]
[1741543992753,0.5777537,82737.0,82721.0,0.3608]
[1741543992955,0.18951648,82731.0,82721.0,0.3608]
[1741543993149,0.1208964,82722.0,82721.0,0.3608]
[1741543993352,0.2348164,82722.0,82721.0,0.3608]
[1741543993552,0.11392,82722.0,82721.0,0.3608]
[1741543993864,0.2389301,82722.0,82721.0,0.3608]
[1741543994152,0.1209115,82712.0,82702.0,0.3608]
[1741543994356,0.60368,82711.0,82700.0,0.1]
[1741543994549,0.3608,82706.0,82693.0,0.3608]
[1741543994854,0.5502611,82705.0,82693.0,0.3608]
[1741543995063,0.0604614,82704.0,82693.0,0.3608]
[1741543995257,0.2336,82704.0,82693.0,0.3608]
[1741543995448,0.4825,82703.0,82684.0,0.3608]
[1741543995647,0.18851648,82694.0,82684.0,0.77567128]
[1741543995857,0.0649467,82693.0,82692.0,0.53581158]
[1741543996056,0.11392,82696.0,82695.0,0.1209359]
[1741543996261,0.11406135,82697.0,82696.0,0.1209345]
[1741543996556,0.11406135,82697.0,82696.0,0.53580578]
[1741543996859,0.11806292,82697.0,82696.0,0.53580578]
[1741543997264,0.00018135,82697.0,82696.0,0.53580578]
[1741543998062,0.00018135,82697.0,82696.0,0.41487128]
[1741543998264,0.00018135,82697.0,82696.0,0.53580578]
[1741543998555,0.00018135,82697.0,82696.0,0.41487128]
[1741543998865,0.00018135,82697.0,82687.0,0.0604736]
[1741543998866,0.00618135,82697.0,82674.0,0.3608]
[1741543999062,0.18951648,82690.0,82684.0,0.41487128]
[1741543999358,0.59758,82689.0,82682.0,0.3608]
[1741543999559,0.60155042,82689.0,82683.0,0.41487128]
[1741543999754,0.00397042,82688.0,82687.0,0.1209467]
[1741543999956,0.00397042,82688.0,82685.0,0.0604752]
[1741544000154,0.4837,82687.0,82686.0,0.1209491]
[1741544000556,0.11785042,82687.0,82686.0,0.53582038]
[1741544000961,0.00397042,82687.0,82686.0,0.53582038]
[1741544001250,0.00397042,82687.0,82686.0,1.12112038]
[1741544001451,0.00397042,82687.0,82686.0,1.27112038]
[1741544001651,0.00018135,82697.0,82689.0,0.41487126]
[1741544001852,0.00181465,82720.0,82707.0,0.0604588]
[1741544002062,5e-08,82720.0,82719.0,1.25737206]
[1741544002253,5e-08,82720.0,82719.0,1.13647126]
[1741544002459,5e-08,82720.0,82719.0,0.7216]
[1741544003352,5e-08,82720.0,82719.0,0.41487126]
[1741544003651,0.11388005,82720.0,82719.0,0.41487126]
[1741544003855,0.11388005,82720.0,82717.0,0.3608]
[1741544003856,0.1209023,82718.0,82717.0,0.3608]
[1741544004064,0.4842,82719.0,82711.0,0.23668135]
[1741544004365,0.2453,82717.0,82712.0,0.41487126]
[1741544004761,0.2469,82716.0,82712.0,0.3608]
[1741544004966,0.2453,82717.0,82714.0,0.41487126]
[1741544005168,0.4922,82717.0,82715.0,0.4663]
[1741544005361,0.4922,82717.0,82711.0,0.00018135]
[1741544005362,0.1209111,82712.0,82711.0,0.00018135]
[1741544005564,0.2347511,82712.0,82711.0,0.00018135]
[1741544005763,0.5955511,82712.0,82711.0,0.00018135]
[1741544005958,0.11384,82712.0,82711.0,0.00018135]
[1741544006262,0.5955511,82712.0,82711.0,0.00018135]
[1741544007460,0.0604665,82697.0,82681.0,0.3622]
[1741544007762,0.11384,82696.0,82692.0,0.4547]
[1741544007962,0.34774,82695.0,82692.0,0.4547]
[1741544008164,0.34774,82695.0,82692.0,0.37903045]
[1741544008366,0.2244,82694.0,82692.0,0.37903045]
[1741544008972,0.2339,82693.0,82692.0,0.37903045]
[1741544009369,0.24668254,82693.0,82692.0,0.2247]
[1741544009762,0.2339,82693.0,82692.0,0.2247]
[1741544010271,0.11384,82695.0,82694.0,0.1209374]
[1741544010467,0.11384,82701.0,82694.0,0.42713934]
[1741544010663,0.11384,82701.0,82700.0,0.4817286]
[1741544010864,0.00018135,82702.0,82700.0,0.77567126]
[1741544011069,0.00018135,82702.0,82701.0,0.41487126]
[1741544011262,0.00018135,82702.0,82701.0,0.78129836]
[1741544011458,0.00018135,82702.0,82701.0,1.02539836]
[1741544011872,0.00018135,82702.0,82700.0,0.3608]
[1741544012064,0.1209416,82692.0,82686.0,0.2455]
[1741544012263,0.5925,82691.0,82690.0,0.41487126]
[1741544012464,0.5925,82691.0,82686.0,0.2455]
[1741544012862,0.5925,82691.0,82687.0,0.41487126]
[1741544013067,0.5925,82691.0,82686.0,0.4896]
[1741544014273,0.14343099,82701.0,82700.0,0.1209286]
[1741544014461,0.25723099,82701.0,82700.0,0.89659986]
[1741544014861,0.25723099,82701.0,82700.0,0.77567126]
[1741544015062,0.25723099,82701.0,82699.0,0.4608]
[1741544015263,0.4789,82700.0,82699.0,0.4608]
[1741544015470,0.40083677,82700.0,82699.0,0.4608]
[1741544015666,0.52176537,82700.0,82699.0,0.4608]
[1741544015872,0.52176537,82700.0,82699.0,0.2306]
[1741544016075,0.1209403,82692.0,82688.0,0.4608]
[1741544016273,0.1209447,82689.0,82688.0,0.4608]
[1741544017577,0.3463,82691.0,82688.0,0.4608]
[1741544018483,0.3463,82691.0,82688.0,0.8216]
[1741544018783,0.2406,82690.0,82688.0,0.8216]
[1741544018981,0.1138,82691.0,82690.0,0.41487126]
[1741544019177,0.1138,82691.0,82690.0,0.53581446]
[1741544019377,0.1138,82691.0,82690.0,1.22861446]
[1741544020270,0.1138,82691.0,82690.0,1.10767126]
[1741544020494,0.1138,82691.0,82690.0,0.88127126]
[1741544020689,0.5785,82691.0,82690.0,0.88127126]
[1741544021192,0.5785,82691.0,82690.0,0.4664]
[1741544023099,0.6994418,82691.0,82690.0,0.2256]
[1741544023391,0.5785,82691.0,82690.0,0.15748633]
[1741544023595,0.5785,82691.0,82683.0,0.2459]
[1741544023794,0.1209491,82686.0,82684.0,0.41487126]
[1741544023989,0.4733,82685.0,82684.0,0.41487126]
[1741544024188,0.4733,82685.0,82683.0,0.2459]
[1741544024388,0.4733,82685.0,82684.0,0.41487126]
[1741544024790,0.4733,82685.0,82683.0,0.2459]
[1741544024992,0.4733,82685.0,82684.0,0.41487126]
[1741544025387,0.4733,82685.0,82683.0,0.2459]
[1741544025590,0.11372,82684.0,82681.0,0.3608]
[1741544025800,0.21304,82683.0,82663.0,0.3608]
[1741544026000,0.1209792,82666.0,82663.0,0.3608]
[1741544026198,0.84722,82665.0,82663.0,0.3608]
[1741544026500,0.11372,82664.0,82663.0,0.3608]
[1741544026897,0.60232,82664.0,82663.0,0.3608]
[1741544027493,0.0604914,82663.0,82653.0,0.2322]
[1741544027688,0.1209843,82662.0,82653.0,0.2322]
[1741544027893,0.4886,82662.0,82653.0,0.2322]
[1741544028603,0.50111166,82662.0,82659.0,0.3608]
[1741544028902,0.50111166,82662.0,82660.0,0.4752]
[1741544029099,0.4886,82662.0,82661.0,0.1209857]
[1741544029300,0.02270207,82663.0,82661.0,0.53585696]
[1741544029495,0.01135014,82663.0,82662.0,0.53585546]
[1741544029690,0.12507014,82663.0,82662.0,0.89665546]
[1741544030006,0.11372,82663.0,82662.0,1.62145546]
[1741544030194,0.11372,82663.0,82662.0,0.8465]
[1741544030502,0.36682592,82663.0,82662.0,0.9674842]
[1741544031200,0.36682592,82663.0,82662.0,0.8465]
[1741544032401,0.37933503,82663.0,82662.0,0.8465]
[1741544032905,0.34280794,82663.0,82662.0,0.8465]
[1741544034204,0.81490794,82663.0,82662.0,0.8465]
[1741544034703,0.81490794,82663.0,82654.0,0.3608]
[1741544034704,0.1209956,82655.0,82654.0,0.3608]
[1741544034901,0.2346756,82655.0,82654.0,0.33913842]
[1741544035099,0.11368,82655.0,82647.0,0.2244]
[1741544035295,0.4614,82654.0,82640.0,0.121015]
[1741544035495,0.4614,82654.0,82639.0,0.467]
[1741544035496,0.33432756,82650.0,82644.0,0.41487126]
[1741544035696,0.4614,82649.0,82645.0,0.467]
[1741544035897,0.11368,82648.0,82645.0,0.467]
[1741544036197,0.11368,82648.0,82636.0,0.3608]
[1741544036397,0.1210191,82639.0,82637.0,0.41487126]
[1741544036592,0.57508,82638.0,82637.0,0.41487126]
[1741544036798,0.57508,82638.0,82636.0,0.3608]
[1741544037007,0.57508,82638.0,82637.0,0.88187126]
[1741544037399,0.57508,82638.0,82637.0,0.467]
[1741544038200,0.57508,82638.0,82637.0,1.00289206]
[1741544038201,0.11368,82638.0,82637.0,1.00289206]
[1741544038596,0.11368,82638.0,82637.0,1.24539206]
[1741544039207,0.03025,82639.0,82638.0,0.1210193]
[1741544039503,0.11368,82645.0,82644.0,0.1210106]
[1741544039705,0.11368,82645.0,82644.0,0.89668186]
[1741544039904,0.00018147,82646.0,82645.0,0.1210091]
[1741544040203,0.00018147,82646.0,82645.0,0.98898036]
[1741544040602,0.00018147,82646.0,82645.0,0.86797126]
[1741544041304,0.00018147,82646.0,82645.0,0.4531]
[1741544041506,0.33899833,82646.0,82645.0,0.5741091]
[1741544041802,0.13829833,82646.0,82645.0,0.98898036]
[1741544042406,0.13829833,82646.0,82645.0,0.86797126]
[1741544042797,0.33899833,82646.0,82645.0,0.86797126]
[1741544042997,0.13829833,82646.0,82645.0,0.98898036]
[1741544043309,0.25193833,82646.0,82645.0,0.98898036]
[1741544044502,0.21623867,82646.0,82645.0,0.98898036]
[1741544044898,0.10259867,82646.0,82645.0,0.98898036]
[1741544045104,0.10259867,82646.0,82645.0,1.13898036]
[1741544045602,0.31874622,82649.0,82648.0,0.1210047]
[1741544045911,0.17814932,82649.0,82648.0,0.89667596]
[1741544046105,0.11891116,82652.0,82651.0,0.1210003]
[1741544046405,0.2783691,82669.0,82658.0,0.1209901]
[1741544046406,0.1647291,82669.0,82658.0,0.1209901]
[1741544046597,0.32897599,82665.0,82664.0,0.53585256]
[1741544046797,0.20084372,82673.0,82672.0,0.37093029]
[1741544046996,0.20084372,82673.0,82672.0,0.73173029]
[1741544047198,0.00181534,82676.0,82672.0,0.99105526]
[1741544047408,0.00181534,82676.0,82675.0,0.73172589]
[1741544047604,0.00181534,82676.0,82675.0,0.94942589]
[1741544048000,0.36103979,82688.0,82683.0,0.1209535]
[1741544048001,0.00018147,82684.0,82683.0,0.1209535]
[1741544048202,0.00018147,82684.0,82683.0,0.3608]
[1741544048407,0.00018147,82684.0,82683.0,0.61076069]
[1741544048802,0.12113347,82684.0,82683.0,0.61076069]
[1741544049007,0.23473347,82684.0,82683.0,0.61076069]
[1741544049402,0.11378147,82684.0,82683.0,0.61076069]
[1741544049707,0.11378147,82684.0,82683.0,0.73171419]
[1741544050006,0.00018147,82684.0,82683.0,0.73171419]
[1741544050506,0.36103979,82695.0,82694.0,0.1209374]
[1741544050710,0.36103979,82695.0,82694.0,1.31159809]
[1741544051004,0.32214495,82701.0,82700.0,0.37088929]
[1741544051205,0.32214495,82701.0,82700.0,0.79688929]
[1741544051403,0.00181478,82701.0,82700.0,0.79688929]
[1741544051808,0.00181478,82701.0,82700.0,0.68332929]
[1741544052113,0.00181478,82701.0,82700.0,0.3608]
[1741544052410,0.00181478,82701.0,82700.0,0.73168929]